lending/lending_fUSD_20250131
["ID","MTS","AMOUNT","RATE_DAILY","PERIOD"]
[351002391,1738282243376,-1027.38,0.00019178,2]
[351002393,1738282243385,-186.705189,0.00019178,2]
[351002395,1738282243395,-500.0,0.00019178,2]
[351002397,1738282243404,-1185.73,0.00019178,2]
[351002399,1738282243413,-500.0,0.00019178,2]
[351002401,1738282243423,-500.0,0.00019178,2]
[351002403,1738282243433,-500.0,0.00019178,2]
[351002405,1738282243443,-500.0,0.00019178,2]
[351002408,1738282243452,-550.01,0.00019178,2]
[351002410,1738282243461,-1314.59,0.00019178,2]
[351002412,1738282243471,-716.27,0.00019178,2]
[351002414,1738282243480,-500.0,0.00019178,2]
[351002416,1738282243490,-663.68,0.00019178,2]
[351002418,1738282243500,-500.0,0.00019178,2]
[351002420,1738282243509,-500.0,0.00019178,2]
[351002422,1738282243520,-556.78684939,0.00019178,2]
[351002424,1738282243529,-500.0,0.00019178,2]
[351002426,1738282243539,-500.0,0.00019178,2]
[351002428,1738282243548,-500.0,0.00019178,2]
[351002430,1738282243558,-500.0,0.00019178,2]
[351002432,1738282243567,-500.0,0.00019178,2]
[351002434,1738282243577,-507.49562152,0.00019178,2]
[351002436,1738282243588,-500.0,0.00019178,2]
[351002438,1738282243598,-500.0,0.00019178,2]
[351002440,1738282243608,-509.29,0.00019178,2]
[351002443,1738282243617,-500.0,0.00019178,2]
[351002446,1738282243626,-686.25,0.00019178,2]
[351002449,1738282243635,-151.0,0.00019178,2]
[351002452,1738282243645,-151.0,0.00019178,2]
[351002455,1738282243654,-500.0,0.00019178,2]
[351002456,1738282243663,-500.0,0.00019178,2]
[351002458,1738282243675,-547.73,0.00019178,2]
[351002460,1738282243684,-962.72,0.00019178,2]
[351002462,1738282243694,-1785.725684,0.00019178,2]
[351002464,1738282243703,-152.282655,0.00019178,2]
[351002466,1738282243712,-500.0,0.00019178,2]
[351002468,1738282243722,-239.972555,0.00019178,2]
[351002470,1738282243731,-239.972555,0.00019178,2]
[351002472,1738282243740,-239.972555,0.00019178,2]
[351002474,1738282243751,-239.972555,0.00019178,2]
[351002476,1738282243761,-239.972555,0.00019178,2]
[351002478,1738282243778,-239.972555,0.00019178,2]
[351002480,1738282243789,-157.998727,0.00019178,2]
[351002482,1738282243798,-239.972555,0.00019178,2]
[351002484,1738282243807,-239.972555,0.00019178,2]
[351002486,1738282243817,-747.92,0.00019178,2]
[351002488,1738282243826,-239.972555,0.00019178,2]
[351002490,1738282243838,-239.972555,0.00019178,2]
[351002492,1738282243847,-351.31616425,0.00019178,2]
[351002494,1738282243857,-239.972555,0.00019178,2]
[351002496,1738282243866,-239.972559,0.00019178,2]
[351002498,1738282243876,-1163.4,0.00019178,2]
[351002500,1738282243885,-153.48005,0.00019178,2]
[351002502,1738282243895,-500.0,0.00019178,2]
[351002504,1738282243905,-1727.29,0.00019178,2]
[351002507,1738282243914,-500.0,0.00019178,2]
[351002509,1738282243924,-2570.17,0.00019178,2]
[351002511,1738282243933,-1209.23,0.00019178,2]
[351002513,1738282243943,-500.0,0.00019178,2]
[351002515,1738282243952,-2025.48,0.00019178,2]
[351002517,1738282243962,-801.2,0.00019178,2]
[351002518,1738282243971,-500.0,0.00019178,2]
[351002520,1738282243980,-500.0,0.00019178,2]
[351002522,1738282243989,-376.23199,0.00019178,2]
[351002524,1738282243999,-500.0,0.00019178,2]
[351002526,1738282244008,-500.0,0.00019178,2]
[351002527,1738282244017,-500.0,0.00019178,2]
[351002528,1738282244027,-500.0,0.00019178,2]
[351002529,1738282244036,-511.26,0.00019178,2]
[351002530,1738282244046,-500.0,0.00019178,2]
[351002531,1738282244055,-2653.36,0.00019178,2]
[351002532,1738282244065,-1001.16,0.00019178,2]
[351002533,1738282244074,-1429.68156,0.00019178,2]
[351002534,1738282244084,-500.0,0.00019178,2]
[351002535,1738282244093,-504.27449008,0.00019178,2]
[351002536,1738282244103,-500.0,0.00019178,2]
[351002538,1738282244112,-500.0,0.00019178,2]
[351002540,1738282244122,-500.0,0.00019178,2]
[351002542,1738282244131,-742.43,0.00019178,2]
[351002544,1738282244141,-505.16938341,0.00019178,2]
[351002546,1738282244150,-2157.54,0.00019178,2]
[351002548,1738282244159,-529.43062399,0.00019178,2]
[351002550,1738282244169,-446.02850379,0.00019178,2]
[351002552,1738282244178,-500.0,0.00019178,2]
[351002554,1738282244188,-500.0,0.00019178,2]
[351002556,1738282244197,-500.0,0.00019178,2]
[351002557,1738282244206,-500.0,0.00019178,2]
[351002559,1738282244215,-501.96800706,0.00019178,2]
[351002561,1738282244224,-500.0,0.00019178,2]
[351002563,1738282244233,-503.90401768,0.00019178,2]
[351002565,1738282244242,-2159.3,0.00019178,2]
[351002567,1738282244251,-1324.84,0.00019178,2]
[351002569,1738282244268,-500.0,0.00019178,2]
[351002571,1738282244278,-500.0,0.00019178,2]
[351002573,1738282244287,-700.53,0.00019178,2]
[351002575,1738282244300,-153.17351686,0.00019178,2]
[351002577,1738282244310,-500.0,0.00019178,2]
[351002579,1738282244320,-500.0,0.00019178,2]
[351002581,1738282244329,-500.0,0.00019178,2]
[351002583,1738282244339,-503.18,0.00019178,2]
[351002585,1738282244348,-653.35,0.00019178,2]
[351002587,1738282244358,-500.0,0.00019178,2]
[351002589,1738282244369,-500.0,0.00019178,2]
[351002591,1738282244378,-500.0,0.00019178,2]
[351002593,1738282244388,-500.0,0.00019178,2]
[351002595,1738282244397,-500.0,0.00019178,2]
[351002597,1738282244407,-500.0,0.00019178,2]
[351002599,1738282244416,-1468.55,0.00019178,2]
[351002601,1738282244426,-500.0,0.00019178,2]
[351002603,1738282244435,-500.0,0.00019178,2]
[351002605,1738282244444,-696.41,0.00019178,2]
[351002607,1738282244454,-860.62,0.00019178,2]
[351002609,1738282244464,-665.07,0.00019178,2]
[351002611,1738282244473,-502.91153409,0.00019178,2]
[351002613,1738282244482,-500.0,0.00019178,2]
[351002615,1738282244491,-500.0,0.00019178,2]
[351002617,1738282244500,-500.0,0.00019178,2]
[351002619,1738282244510,-2209.06,0.00019178,2]
[351002621,1738282244519,-1267.03,0.00019178,2]
[351002623,1738282244529,-507.66,0.00019178,2]
[351002625,1738282244538,-500.0,0.00019178,2]
[351002627,1738282244548,-1049.05,0.00019178,2]
[351002629,1738282244557,-511.25862332,0.00019178,2]
[351002631,1738282244566,-500.0,0.00019178,2]
[351002633,1738282244577,-1569.67,0.00019178,2]
[351002635,1738282244589,-964.9,0.00019178,2]
[351002637,1738282244598,-1491.92,0.00019178,2]
[351002639,1738282244608,-500.0,0.00019178,2]
[351002641,1738282244617,-500.0,0.00019178,2]
[351002643,1738282244627,-500.0,0.00019178,2]
[351002645,1738282244636,-500.0,0.00019178,2]
[351002647,1738282244646,-267.97154775,0.00019178,2]
[351002650,1738282244657,-161.2598901,0.00019178,2]
[351002652,1738282244668,-2385.82,0.00019178,2]
[351002653,1738282244681,-500.0,0.00019178,2]
[351002656,1738282244691,-1996.03,0.00019178,2]
[351002658,1738282244701,-156.40995016,0.00019178,2]
[351002660,1738282244711,-500.0,0.00019178,2]
[351002662,1738282244722,-500.0,0.00019178,7]
[351002664,1738282244732,-500.0,0.00019178,2]
[351002666,1738282244742,-500.0,0.00019178,2]
[351002668,1738282244755,-500.0,0.00019178,2]
[351002670,1738282244765,-799.92,0.00019178,2]
[351002672,1738282244774,-508.04332661,0.00019178,2]
[351002674,1738282244784,-1931.5,0.00019178,2]
[351002676,1738282244793,-500.0,0.00019178,2]
[351002678,1738282244803,-714.4,0.00019178,2]
[351002680,1738282244812,-1103.45,0.00019178,2]
[351002682,1738282244822,-500.0,0.00019178,2]
[351002684,1738282244832,-507.09415739,0.00019178,2]
[351002686,1738282244842,-500.0,0.00019178,2]
[351002688,1738282244852,-500.0,0.00019178,2]
[351002690,1738282244862,-500.0,0.00019178,2]
[351002692,1738282244871,-500.0,0.00019178,2]
[351002694,1738282244881,-500.0,0.00019178,2]
[351002696,1738282244891,-695.08,0.00019178,2]
[351002698,1738282244901,-1303.61,0.00019178,2]
[351002700,1738282244910,-500.0,0.00019178,2]
[351002702,1738282244920,-255.40370193,0.00019178,2]
[351002704,1738282244929,-500.0,0.00019178,2]
[351002706,1738282244939,-500.0,0.00019178,2]
[351002708,1738282244949,-500.0,0.00019178,2]
[351002710,1738282244959,-500.0,0.00019178,2]
[351002712,1738282244969,-811.08,0.00019178,2]
[351002714,1738282244978,-500.0,0.00019178,2]
[351002716,1738282244988,-500.0,0.00019178,2]
[351002718,1738282244998,-500.0,0.00019178,2]
[351002720,1738282245008,-500.0,0.00019178,2]
[351002722,1738282245017,-500.0,0.00019178,2]
[351002724,1738282245027,-1539.27,0.00019178,2]
[351002727,1738282245037,-571.71,0.00019178,2]
[351002729,1738282245047,-500.0,0.00019178,2]
[351002731,1738282245056,-951.99,0.00019178,2]
[351002733,1738282245067,-500.0,0.00019178,2]
[351002735,1738282245077,-1128.99,0.00019178,2]
[351002737,1738282245087,-500.0,0.00019178,2]
[351002739,1738282245097,-963.67,0.00019178,2]
[351002741,1738282245106,-3077.38,0.00019178,2]
[351002743,1738282245115,-834.8,0.00019178,2]
[351002745,1738282245125,-500.0,0.00019178,2]
[351002747,1738282245135,-1093.45,0.00019178,2]
[351002749,1738282245145,-603.14070507,0.00019178,2]
[351002751,1738282245155,-500.0,0.00019178,2]
[351002753,1738282245165,-500.0,0.00019178,2]
[351002755,1738282245174,-913.95,0.00019178,2]
[351002757,1738282245185,-500.0,0.00019178,2]
[351002759,1738282245195,-454.808761,0.00019178,2]
[351002761,1738282245205,-500.0,0.00019178,2]
[351002763,1738282245215,-454.808761,0.00019178,2]
[351002765,1738282245225,-454.808761,0.00019178,2]
[351002767,1738282245234,-454.808761,0.00019178,2]
[351002769,1738282245244,-454.808761,0.00019178,2]
[351002771,1738282245254,-454.808761,0.00019178,2]
[351002773,1738282245264,-561.52,0.00019178,2]
[351002775,1738282245273,-500.0,0.00019178,2]
[351002777,1738282245283,-151.0,0.00019178,2]
[351002779,1738282245293,-1054.93,0.00019178,2]
[351002781,1738282245303,-500.0,0.00019178,2]
[351002783,1738282245312,-151.0,0.00019178,2]
[351002785,1738282245322,-454.808761,0.00019178,2]
[351002787,1738282245332,-151.0,0.00019178,2]
[351002789,1738282245342,-454.808761,0.00019178,2]
[351002791,1738282245351,-500.0,0.00019178,2]
[351002793,1738282245361,-151.0,0.00019178,2]
[351002795,1738282245370,-454.808761,0.00019178,2]
[351002797,1738282245380,-151.0,0.00019178,2]
[351002799,1738282245389,-454.808761,0.00019178,2]
[351002801,1738282245399,-151.0,0.00019178,2]
[351002803,1738282245408,-151.0,0.00019178,2]
[351002805,1738282245418,-454.808761,0.00019178,2]
[351002807,1738282245429,-151.0,0.00019178,2]
[351002809,1738282245439,-454.808762,0.00019178,2]
[351002811,1738282245448,-151.0,0.00019178,2]
[351002813,1738282245458,-151.0,0.00019178,2]
[351002815,1738282245468,-500.0,0.00019178,2]
[351002817,1738282245477,-151.0,0.00019178,2]
[351002819,1738282245488,-905.8,0.00019178,2]
[351002822,1738282245498,-151.0,0.00019178,2]
[351002825,1738282245508,-500.0,0.00019178,2]
[351002827,1738282245518,-500.0,0.00019178,2]
[351002829,1738282245528,-192.807424,0.00019178,2]
[351002831,1738282245538,-500.0,0.00019178,2]
[351002833,1738282245547,-500.0,0.00019178,2]
[351002836,1738282245557,-1221.47,0.00019178,2]
[351002838,1738282245566,-500.0,0.00019178,2]
[351002840,1738282245576,-654.68,0.00019178,2]
[351002841,1738282245587,-1133.01,0.00019178,2]
[351002843,1738282245597,-475.5116375,0.00019178,2]
[351002845,1738282245607,-500.0,0.00019178,2]
[351002847,1738282245617,-1569.31,0.00019178,2]
[351002849,1738282245627,-500.0,0.00019178,2]
[351002851,1738282245637,-500.0,0.00019178,2]
[351002853,1738282245646,-849.04,0.00019178,2]
[351002855,1738282245655,-500.0,0.00019178,2]
[351002858,1738282245665,-500.0,0.00019178,2]
[351002860,1738282245677,-500.0,0.00019178,2]
[351002862,1738282245687,-500.0,0.00019178,2]
[351002864,1738282245697,-837.24,0.00019178,2]
[351002866,1738282245707,-500.0,0.00019178,2]
[351002868,1738282245718,-500.0,0.00019178,2]
[351002870,1738282245728,-151.0,0.00019178,2]
[351002872,1738282245747,-500.0,0.00019178,2]
[351002874,1738282245762,-151.0,0.00019178,2]
[351002877,1738282245772,-500.0,0.00019178,2]
[351002879,1738282245783,-500.0,0.00019178,2]
[351002881,1738282245793,-1872.35,0.00019178,2]
[351002883,1738282245803,-500.0,0.00019178,2]
[351002885,1738282245813,-583.25,0.00019178,2]
[351002887,1738282245823,-517.98,0.00019178,2]
[351002889,1738282245832,-515.74284783,0.00019178,2]
[351002891,1738282245842,-1511.84,0.00019178,2]
[351002893,1738282245853,-500.0,0.00019178,2]
[351002895,1738282245863,-1005.51,0.00019178,2]
[351002897,1738282245872,-500.0,0.00019178,2]
[351002914,1738282246081,-1127.03,0.00019178,2]
[351002915,1738282246092,-271.74689622,0.00019178,2]
[351002916,1738282246102,-1600.12,0.00019178,2]
[351002917,1738282246111,-500.0,0.00019178,2]
[351002919,1738282246122,-632.61,0.00019178,2]
[351002921,1738282246131,-500.0,0.00019178,2]
[351002923,1738282246141,-872.69,0.00019178,2]
[351002925,1738282246151,-2321.22,0.00019178,2]
[351002927,1738282246162,-1482.84,0.00019178,2]
[351002929,1738282246172,-500.0,0.00019178,2]
[351002931,1738282246182,-704.47,0.00019178,2]
[351002933,1738282246192,-500.0,0.00019178,2]
[351002936,1738282246202,-2747.53,0.00019178,2]
[351002938,1738282246212,-500.0,0.00019178,2]
[351002940,1738282246221,-1100.63,0.00019178,2]
[351002942,1738282246231,-571.97,0.00019178,2]
[351002944,1738282246242,-500.0,0.00019178,2]
[351002946,1738282246252,-500.0,0.00019178,2]
[351002948,1738282246262,-200.0,0.00019178,2]
[351002950,1738282246272,-500.0,0.00019178,2]
[351002952,1738282246282,-500.0,0.00019178,2]
[351002954,1738282246291,-500.0,0.00019178,2]
[351002956,1738282246300,-1054.06,0.00019178,2]
[351002958,1738282246310,-502.54,0.00019178,2]
[351002960,1738282246319,-500.0,0.00019178,2]
[351002962,1738282246328,-949.17,0.00019178,2]
[351002964,1738282246340,-500.0,0.00019178,2]
[351002966,1738282246350,-632.21,0.00019178,2]
[351002968,1738282246360,-740.74,0.00019178,2]
[351002970,1738282246369,-500.0,0.00019178,2]
[351002972,1738282246379,-1506.63,0.00019178,2]
[351002974,1738282246390,-1123.33,0.00019178,2]
[351002976,1738282246401,-959.27,0.00019178,2]
[351002978,1738282246411,-510.67,0.00019178,2]
[351002980,1738282246420,-500.0,0.00019178,2]
[351002982,1738282246430,-500.0,0.00019178,2]
[351002984,1738282246440,-959.07,0.00019178,2]
[351002986,1738282246449,-2274.95,0.00019178,2]
[351002988,1738282246459,-934.51,0.00019178,2]
[351002990,1738282246469,-500.0,0.00019178,2]
[351002992,1738282246479,-500.0,0.00019178,2]
[351002994,1738282246488,-500.0,0.00019178,2]
[351002996,1738282246498,-584.56,0.00019178,2]
[351002998,1738282246508,-798.6,0.00019178,2]
[351003000,1738282246518,-242.124155,0.00019178,2]
[351003002,1738282246529,-534.79,0.00019178,2]
[351003004,1738282246539,-242.124155,0.00019178,2]
[351003006,1738282246548,-242.124155,0.00019178,2]
[351003008,1738282246558,-500.0,0.00019178,2]
[351003010,1738282246568,-242.124155,0.00019178,2]
[351003012,1738282246577,-242.124155,0.00019178,2]
[351003014,1738282246588,-242.124155,0.00019178,2]
[351003016,1738282246598,-500.0,0.00019178,2]
[351003018,1738282246609,-242.124155,0.00019178,2]
[351003020,1738282246619,-554.15,0.00019178,2]
[351003022,1738282246628,-242.124155,0.00019178,2]
[351003024,1738282246638,-242.124155,0.00019178,2]
[351003026,1738282246649,-242.124155,0.00019178,2]
[351003028,1738282246659,-500.0,0.00019178,2]
[351003030,1738282246670,-242.124155,0.00019178,2]
[351003032,1738282246682,-242.124159,0.00019178,2]
[351003034,1738282246692,-500.0,0.00019178,2]
[351003037,1738282246703,-500.0,0.00019178,2]
[351003039,1738282246714,-500.0,0.00019178,2]
[351003041,1738282246725,-1096.25,0.00019178,2]
[351003043,1738282246735,-500.0,0.00019178,2]
[351003045,1738282246746,-500.0,0.00019178,2]
[351003047,1738282246755,-500.0,0.00019178,2]
[351003049,1738282246766,-151.0,0.00019178,2]
[351003051,1738282246775,-151.0,0.00019178,2]
[351003053,1738282246785,-1672.85,0.00019178,2]
[351003055,1738282246795,-151.124226,0.00019178,2]
[351003057,1738282246805,-500.0,0.00019178,2]
[351003059,1738282246814,-500.0,0.00019178,2]
[351003061,1738282246825,-500.0,0.00019178,2]
[351003063,1738282246835,-500.0,0.00019178,2]
[351003065,1738282246844,-525.10039856,0.00019178,2]
[351003067,1738282246853,-429.18610459,0.00019178,2]
[351003069,1738282246863,-1656.5,0.00019178,2]
[351003071,1738282246874,-500.0,0.00019178,2]
[351003073,1738282246883,-653.46,0.00019178,2]
[351003075,1738282246893,-500.0,0.00019178,2]
[351003077,1738282246903,-500.0,0.00019178,2]
[351003079,1738282246913,-538.56,0.00019178,2]
[351003081,1738282246923,-1008.68,0.00019178,2]
[351003083,1738282246943,-500.0,0.00019178,2]
[351003085,1738282246957,-500.0,0.00019178,2]
[351003087,1738282246967,-500.0,0.00019178,2]
[351003089,1738282246977,-500.0,0.00019178,2]
[351003091,1738282246986,-500.0,0.00019178,2]
[351003094,1738282246996,-500.0,0.00019178,2]
[351003096,1738282247006,-500.0,0.00019178,2]
[351003098,1738282247016,-500.0,0.00019178,2]
[351003100,1738282247025,-500.0,0.00019178,2]
[351003102,1738282247035,-500.0,0.00019178,2]
[351003104,1738282247044,-500.0,0.00019178,2]
[351003106,1738282247054,-500.0,0.00019178,2]
[351003108,1738282247064,-291.95951854,0.00019178,2]
[351003110,1738282247074,-500.0,0.00019178,2]
[351003112,1738282247084,-500.0,0.00019178,2]
[351003114,1738282247094,-539.56,0.00019178,2]
[351003116,1738282247104,-500.0,0.00019178,2]
[351003118,1738282247114,-511.16,0.00019178,2]
[351003120,1738282247124,-500.0,0.00019178,2]
[351003122,1738282247134,-896.35,0.00019178,2]
[351003124,1738282247143,-1398.83,0.00019178,2]
[351003126,1738282247153,-1843.2,0.00019178,2]
[351003128,1738282247162,-1012.74,0.00019178,2]
[351003130,1738282247172,-662.04,0.00019178,2]
[351003132,1738282247182,-500.0,0.00019178,2]
[351003134,1738282247192,-500.0,0.00019178,2]
[351003136,1738282247201,-500.0,0.00019178,2]
[351003138,1738282247211,-638.46,0.00019178,2]
[351003140,1738282247221,-500.0,0.00019178,2]
[351003143,1738282247231,-556.6,0.00019178,2]
[351003145,1738282247241,-500.0,0.00019178,2]
[351003147,1738282247251,-344.83025848,0.00019178,2]
[351003149,1738282247260,-220.99335481,0.00019178,2]
[351003151,1738282247269,-822.38,0.00019178,2]
[351003153,1738282247279,-782.86,0.00019178,2]
[351003154,1738282247288,-928.31,0.00019178,2]
[351003156,1738282247297,-500.0,0.00019178,2]
[351003158,1738282247306,-1846.85,0.00019178,2]
[351003160,1738282247316,-500.0,0.00019178,2]
[351003162,1738282247326,-500.0,0.00019178,2]
[351003164,1738282247336,-564.2,0.00019178,2]
[351003166,1738282247346,-1509.54,0.00019178,2]
[351003168,1738282247356,-500.0,0.00019178,2]
[351003170,1738282247366,-1427.97,0.00019178,2]
[351003173,1738282247377,-2352.35,0.00019178,2]
[351003174,1738282247387,-308.42775328,0.00019178,2]
[351003177,1738282247396,-504.47477566,0.00019178,2]
[351003179,1738282247408,-500.0,0.00019178,2]
[351003181,1738282247417,-570.55810441,0.00019178,2]
[351003183,1738282247427,-1138.48,0.00019178,2]
[351003185,1738282247436,-198.6457,0.00019178,2]
[351003187,1738282247445,-1066.51,0.00019178,2]
[351003189,1738282247455,-198.6457,0.00019178,2]
[351003191,1738282247465,-461.54182885,0.00019178,2]
[351003193,1738282247474,-500.0,0.00019178,2]
[351003195,1738282247484,-198.6457,0.00019178,2]
[351003197,1738282247493,-198.6457,0.00019178,2]
[351003199,1738282247502,-198.6457,0.00019178,2]
[351003201,1738282247512,-278.21352267,0.00019178,2]
[351003203,1738282247521,-198.6457,0.00019178,2]
[351003205,1738282247530,-2256.51,0.00019178,2]
[351003207,1738282247539,-198.6457,0.00019178,2]
[351003209,1738282247548,-500.0,0.00019178,2]
[351003211,1738282247558,-198.6457,0.00019178,2]
[351003213,1738282247568,-198.6457,0.00019178,2]
[351003215,1738282247577,-198.6457,0.00019178,2]
[351003217,1738282247588,-198.6457,0.00019178,2]
[351003219,1738282247598,-500.0,0.00019178,2]
[351003221,1738282247607,-198.645701,0.00019178,2]
[351003223,1738282247617,-500.0,0.00019178,2]
[351003225,1738282247626,-500.0,0.00019178,2]
[351003227,1738282247635,-500.0,0.00019178,2]
[351003229,1738282247645,-597.51,0.00019178,2]
[351003231,1738282247654,-1590.7,0.00019178,2]
[351003233,1738282247664,-497.42170741,0.00019178,2]
[351003235,1738282247676,-563.68,0.00019178,2]
[351003237,1738282247687,-622.97,0.00019178,2]
[351003239,1738282247696,-1081.95,0.00019178,2]
[351003241,1738282247706,-2884.53,0.00019178,2]
[351003243,1738282247717,-500.0,0.00019178,2]
[351003245,1738282247726,-500.0,0.00019178,2]
[351003247,1738282247735,-500.0,0.00019178,2]
[351003249,1738282247744,-500.0,0.00019178,2]
[351003251,1738282247759,-1416.91,0.00019178,2]
[351003253,1738282247768,-1371.49,0.00019178,2]
[351003255,1738282247777,-500.0,0.00019178,2]
[351003257,1738282247785,-252.05370559,0.00019178,2]
[351003259,1738282247794,-1073.89,0.00019178,2]
[351003261,1738282247804,-500.0,0.00019178,2]
[351003263,1738282247813,-842.43,0.00019178,2]
[351003265,1738282247822,-500.0,0.00019178,2]
[351003267,1738282247833,-580.996224,0.00019178,2]
[351003269,1738282247842,-740.18,0.00019178,2]
[351003271,1738282247851,-1635.29,0.00019178,2]
[351003272,1738282247860,-580.996224,0.00019178,2]
[351003273,1738282247870,-580.996224,0.00019178,2]
[351003274,1738282247879,-580.996224,0.00019178,2]
[351003275,1738282247889,-580.996224,0.00019178,2]
[351003276,1738282247898,-580.996224,0.00019178,2]
[351003277,1738282247908,-500.0,0.00019178,2]
[351003278,1738282247917,-576.34,0.00019178,2]
[351003279,1738282247927,-580.996224,0.00019178,2]
[351003281,1738282247937,-580.996224,0.00019178,2]
[351003283,1738282247947,-580.996224,0.00019178,2]
[351003285,1738282247957,-2283.25,0.00019178,2]
[351003287,1738282247966,-500.0,0.00019178,2]
[351003289,1738282247977,-580.996224,0.00019178,2]
[351003291,1738282247986,-500.0,0.00019178,2]
[351003293,1738282247995,-580.996224,0.00019178,2]
[351003295,1738282248004,-500.0,0.00019178,2]
[351003297,1738282248014,-580.996228,0.00019178,2]
[351003299,1738282248023,-959.67,0.00019178,2]
[351003301,1738282248033,-500.0,0.00019178,2]
[351003303,1738282248043,-2771.83,0.00019178,2]
[351003305,1738282248053,-500.0,0.00019178,2]
[351003307,1738282248063,-897.59,0.00019178,2]
[351003309,1738282248073,-1920.8,0.00019178,2]
[351003311,1738282248082,-500.0,0.00019178,2]
[351003313,1738282248092,-500.0,0.00019178,2]
[351003315,1738282248102,-500.0,0.00019178,2]
[351003317,1738282248111,-1414.22,0.00019178,2]
[351003319,1738282248120,-1975.06,0.00019178,2]
[351003321,1738282248130,-500.0,0.00019178,2]
[351003323,1738282248139,-500.0,0.00019178,2]
[351003325,1738282248149,-506.36489304,0.00019178,2]
[351003327,1738282248159,-1901.04,0.00019178,2]
[351003329,1738282248170,-670.17,0.00019178,2]
[351003331,1738282248180,-754.88,0.00019178,2]
[351003333,1738282248191,-500.0,0.00019178,2]
[351003335,1738282248201,-500.0,0.00019178,2]
[351003337,1738282248212,-500.0,0.00019178,2]
[351003339,1738282248223,-500.0,0.00019178,2]
[351003341,1738282248234,-2169.06,0.00019178,2]
[351003343,1738282248245,-500.0,0.00019178,2]
[351003345,1738282248255,-1026.29,0.00019178,2]
[351003347,1738282248265,-1411.1,0.00019178,2]
[351003349,1738282248275,-500.0,0.00019178,2]
[351003351,1738282248285,-500.0,0.00019178,2]
[351003353,1738282248295,-500.0,0.00019178,2]
[351003355,1738282248305,-2435.7,0.00019178,2]
[351003357,1738282248315,-500.0,0.00019178,2]
[351003359,1738282248325,-500.0,0.00019178,2]
[351003361,1738282248336,-159.103866,0.00019178,2]
[351003363,1738282248346,-500.0,0.00019178,2]
[351003365,1738282248357,-159.103866,0.00019178,2]
[351003367,1738282248367,-159.103866,0.00019178,2]
[351003369,1738282248376,-500.0,0.00019178,2]
[351003371,1738282248385,-159.103866,0.00019178,2]
[351003373,1738282248395,-500.0,0.00019178,2]
[351003375,1738282248405,-159.103866,0.00019178,2]
[351003377,1738282248415,-500.0,0.00019178,2]
[351003379,1738282248425,-159.103866,0.00019178,2]
[351003381,1738282248435,-500.0,0.00019178,2]
[351003383,1738282248445,-159.103866,0.00019178,2]
[351003385,1738282248455,-1355.55,0.00019178,2]
[351003387,1738282248465,-159.103866,0.00019178,2]
[351003389,1738282248474,-500.0,0.00019178,2]
[351003391,1738282248484,-159.103866,0.00019178,2]
[351003393,1738282248495,-159.103866,0.00019178,2]
[351003395,1738282248505,-2403.5,0.00019178,2]
[351003397,1738282248516,-766.18,0.00019178,2]